[Event "Live Chess"]
[Site "Chess.com"]
[Date "2023.05.20"]
[Round "-"]
[White "LiamClery2020"]
[Black "AbilifyXL"]
[Result "1-0"]
[WhiteElo "2088"]
[BlackElo "1939"]
[TimeControl "300"]
[EndTime "11:58:34 PDT"]
[Termination "LiamClery2020 won on time"]

1. e4 {[%clk 0:04:59.6]} 1... d5 {[%clk 0:04:58.4]} 2. exd5 {[%clk 0:04:58.3]}
2... Qxd5 {[%clk 0:04:52]} 3. Nc3 {[%clk 0:04:56.4]} 3... Qa5 {[%clk 0:04:50.8]}
4. b4 {[%clk 0:04:54.8]} 4... Qxb4 {[%clk 0:04:49.3]} 5. Rb1 {[%clk 0:04:54]}
5... Qd6 {[%clk 0:04:48.8]} 6. Nf3 {[%clk 0:04:50.1]} 6... a6 {[%clk 0:04:47.6]}
7. d4 {[%clk 0:04:48.3]} 7... Nf6 {[%clk 0:04:46.2]} 8. g3 {[%clk 0:04:47.8]}
8... c6 {[%clk 0:04:43.9]} 9. Bf4 {[%clk 0:04:47.2]} 9... Qd8 {[%clk 0:04:42.4]}
10. Bg2 {[%clk 0:04:46.7]} 10... e6 {[%clk 0:04:40.4]} 11. O-O {[%clk
0:04:45.3]} 11... Nbd7 {[%clk 0:04:39.4]} 12. Re1 {[%clk 0:04:44.3]} 12... Be7
{[%clk 0:04:36.8]} 13. Ne5 {[%clk 0:04:37.8]} 13... O-O {[%clk 0:04:35]} 14. Qf3
{[%clk 0:04:34.7]} 14... Nd5 {[%clk 0:04:32.8]} 15. Ne4 {[%clk 0:04:31.5]} 15...
Nxf4 {[%clk 0:04:31.1]} 16. gxf4 {[%clk 0:04:30.2]} 16... Nf6 {[%clk 0:04:27.9]}
17. Rbd1 {[%clk 0:04:25.4]} 17... g6 {[%clk 0:04:24.2]} 18. Nc5 {[%clk
0:04:20.8]} 18... Qa5 {[%clk 0:04:00.3]} 19. Nb3 {[%clk 0:04:09.7]} 19... Qxa2
{[%clk 0:03:25.3]} 20. Qc3 {[%clk 0:04:07.5]} 20... Qa3 {[%clk 0:03:08]} 21. Nc4
{[%clk 0:04:00]} 21... Qb4 {[%clk 0:03:05.1]} 22. Qd3 {[%clk 0:03:56.8]} 22...
Nd5 {[%clk 0:02:58.1]} 23. Bxd5 {[%clk 0:03:53]} 23... cxd5 {[%clk 0:02:55.8]}
24. Ne5 {[%clk 0:03:50.4]} 24... Bf6 {[%clk 0:02:47.4]} 25. Nc5 {[%clk
0:03:47.2]} 25... Qa5 {[%clk 0:02:29.1]} 26. Ncd7 {[%clk 0:03:40.2]} 26... Bxd7
{[%clk 0:02:25.9]} 27. Nxd7 {[%clk 0:03:38.5]} 27... Bg7 {[%clk 0:02:20.4]} 28.
Nxf8 {[%clk 0:03:37]} 28... Rxf8 {[%clk 0:02:20]} 29. Re2 {[%clk 0:03:33]} 29...
b5 {[%clk 0:02:14.7]} 30. Qb3 {[%clk 0:03:29.4]} 30... Rc8 {[%clk 0:02:12]} 31.
Rb1 {[%clk 0:03:14.2]} 31... Qc7 {[%clk 0:02:07.8]} 32. Rd2 {[%clk 0:03:12]}
32... Qxf4 {[%clk 0:02:05.2]} 33. Qe3 {[%clk 0:03:09]} 33... Qf5 {[%clk
0:01:52.5]} 34. Rb2 {[%clk 0:02:54]} 34... h5 {[%clk 0:01:45.6]} 35. Qd3 {[%clk
0:02:45.8]} 35... Qg5+ {[%clk 0:01:38.3]} 36. Kf1 {[%clk 0:02:44.4]} 36... Bh6
{[%clk 0:01:33.6]} 37. Rd1 {[%clk 0:02:42.3]} 37... Qg4 {[%clk 0:01:22.7]} 38.
Re1 {[%clk 0:02:35.2]} 38... Bg7 {[%clk 0:01:19.8]} 39. c3 {[%clk 0:02:31.3]}
39... Qf4 {[%clk 0:01:14.1]} 40. Kg2 {[%clk 0:02:24.6]} 40... Qc7 {[%clk
0:01:11.1]} 41. Re3 {[%clk 0:02:22.8]} 41... Ra8 {[%clk 0:01:04.6]} 42. Rf3
{[%clk 0:02:16.1]} 42... Qc6 {[%clk 0:00:57.4]} 43. Qe2 {[%clk 0:02:09.2]} 43...
Qc7 {[%clk 0:00:55.1]} 44. Qd3 {[%clk 0:02:01.1]} 44... Rb8 {[%clk 0:00:54.5]}
45. Ra2 {[%clk 0:01:58.6]} 45... a5 {[%clk 0:00:53.2]} 46. Qd1 {[%clk
0:01:51.4]} 46... b4 {[%clk 0:00:52]} 47. cxb4 {[%clk 0:01:43.9]} 47... axb4
{[%clk 0:00:51.9]} 48. Rc2 {[%clk 0:01:42.5]} 48... Qb6 {[%clk 0:00:50.3]} 49.
Qd3 {[%clk 0:01:39.5]} 49... Qxd4 {[%clk 0:00:48.3]} 50. Qb3 {[%clk 0:01:25.3]}
50... Qg4+ {[%clk 0:00:45.8]} 51. Kf1 {[%clk 0:01:24.3]} 51... Qe4 {[%clk
0:00:43.9]} 52. Re3 {[%clk 0:01:16.4]} 52... Qd4 {[%clk 0:00:42.5]} 53. Rd3
{[%clk 0:01:12.7]} 53... Qe5 {[%clk 0:00:40]} 54. Kg2 {[%clk 0:01:09]} 54... Qe1
{[%clk 0:00:38.1]} 55. Re3 {[%clk 0:01:06.1]} 55... Qd1 {[%clk 0:00:36]} 56.
Rc8+ {[%clk 0:01:04.5]} 56... Rxc8 {[%clk 0:00:35.4]} 57. Qxd1 {[%clk
0:01:04.4]} 57... Bc3 {[%clk 0:00:33.9]} 58. Qb3 {[%clk 0:01:03.5]} 58... d4
{[%clk 0:00:33.4]} 59. Rd3 {[%clk 0:01:03]} 59... e5 {[%clk 0:00:32.3]} 60. Kf3
{[%clk 0:01:01.6]} 60... Kg7 {[%clk 0:00:29.8]} 61. Qa4 {[%clk 0:00:58.8]} 61...
f5 {[%clk 0:00:27.7]} 62. Qd7+ {[%clk 0:00:57.9]} 62... Kf6 {[%clk 0:00:26]} 63.
Qxc8 {[%clk 0:00:57]} 63... e4+ {[%clk 0:00:25.9]} 64. Ke2 {[%clk 0:00:56.6]}
64... exd3+ {[%clk 0:00:25]} 65. Kxd3 {[%clk 0:00:56.5]} 65... Ke5 {[%clk
0:00:23.9]} 66. Qe8+ {[%clk 0:00:54.7]} 66... Kf6 {[%clk 0:00:23.1]} 67. Qc6+
{[%clk 0:00:52.4]} 67... Kg5 {[%clk 0:00:23]} 68. Qg2+ {[%clk 0:00:51.3]} 68...
Kf6 {[%clk 0:00:22.2]} 69. f4 {[%clk 0:00:50.6]} 69... b3 {[%clk 0:00:21]} 70.
Qb7 {[%clk 0:00:47.4]} 70... b2 {[%clk 0:00:20.1]} 71. Kc2 {[%clk 0:00:46.9]}
71... Ke6 {[%clk 0:00:16.9]} 72. Qa6+ {[%clk 0:00:38.8]} 72... Kf7 {[%clk
0:00:15.3]} 73. Qc4+ {[%clk 0:00:34.4]} 73... Kf6 {[%clk 0:00:14.6]} 74. h4
{[%clk 0:00:33.8]} 74... Kg7 {[%clk 0:00:12.8]} 75. Kb1 {[%clk 0:00:30.1]} 75...
Kf6 {[%clk 0:00:12.3]} 76. Qc6+ {[%clk 0:00:28.6]} 76... Kg7 {[%clk 0:00:11.8]}
77. Qg2 {[%clk 0:00:26]} 77... Kf6 {[%clk 0:00:11.3]} 78. Qg5+ {[%clk
0:00:25.6]} 78... Kf7 {[%clk 0:00:10.8]} 79. Kc2 {[%clk 0:00:22.2]} 79... Kg7
{[%clk 0:00:09]} 80. Qd8 {[%clk 0:00:20.9]} 80... Kf7 {[%clk 0:00:06.3]} 81.
Qd7+ {[%clk 0:00:20.2]} 81... Kf6 {[%clk 0:00:05.7]} 82. Qa4 {[%clk 0:00:20.1]}
82... Kf7 {[%clk 0:00:04.5]} 83. Qb3+ {[%clk 0:00:19.6]} 83... Kf6 {[%clk
0:00:03.8]} 84. Kd3 {[%clk 0:00:19.5]} 84... Kg7 {[%clk 0:00:01.9]} 85. Qe6
{[%clk 0:00:18.1]} 1-0

[Event "Live Chess"]
[Site "Chess.com"]
[Date "2023.05.20"]
[Round "-"]
[White "MaximKris"]
[Black "lHolyDiverl"]
[Result "1-0"]
[WhiteElo "1880"]
[BlackElo "560"]
[TimeControl "300"]
[EndTime "11:58:34 PDT"]
[Termination "MaximKris won by checkmate"]

1. e4 {[%clk 0:04:59.2]} 1... c6 {[%clk 0:04:58.6]} 2. Nf3 {[%clk 0:04:57.6]}
2... d5 {[%clk 0:04:57.6]} 3. Nc3 {[%clk 0:04:57.2]} 3... dxe4 {[%clk
0:04:47.6]} 4. Nxe4 {[%clk 0:04:57.1]} 4... Nf6 {[%clk 0:04:42.8]} 5. Nxf6+
{[%clk 0:04:56.2]} 5... gxf6 {[%clk 0:04:40.2]} 6. d4 {[%clk 0:04:54.9]} 6...
Bg4 {[%clk 0:04:34.2]} 7. Bd2 {[%clk 0:04:49]} 7... Bxf3 {[%clk 0:04:30.6]} 8.
Qxf3 {[%clk 0:04:48.9]} 8... Qxd4 {[%clk 0:04:27.7]} 9. O-O-O {[%clk 0:04:47.4]}
9... Bg7 {[%clk 0:03:54.9]} 10. Ba5 {[%clk 0:04:33.3]} 10... Qe5 {[%clk
0:03:33.7]} 11. Rd8# {[%clk 0:04:30.1]} 1-0

[Event "Live Chess"]
[Site "Chess.com"]
[Date "2023.05.20"]
[Round "-"]
[White "Goblinbasher"]
[Black "kerryman1969"]
[Result "1-0"]
[WhiteElo "1206"]
[BlackElo "1151"]
[TimeControl "300"]
[EndTime "11:58:38 PDT"]
[Termination "Goblinbasher won by resignation"]

1. e4 {[%clk 0:04:57.2]} 1... e5 {[%clk 0:04:57.2]} 2. Nc3 {[%clk 0:04:55.7]}
2... Nc6 {[%clk 0:04:54.7]} 3. f4 {[%clk 0:04:53.5]} 3... exf4 {[%clk
0:04:50.8]} 4. Nf3 {[%clk 0:04:52.1]} 4... d6 {[%clk 0:04:47.3]} 5. Bc4 {[%clk
0:04:48.2]} 5... Be7 {[%clk 0:04:43.8]} 6. O-O {[%clk 0:04:46.8]} 6... Nf6
{[%clk 0:04:38.7]} 7. d3 {[%clk 0:04:45.4]} 7... O-O {[%clk 0:04:34.2]} 8. Bxf4
{[%clk 0:04:42.8]} 8... Bg4 {[%clk 0:04:26.3]} 9. Qe1 {[%clk 0:04:36.3]} 9...
Na5 {[%clk 0:04:21.1]} 10. Bb3 {[%clk 0:04:32.4]} 10... Nxb3 {[%clk 0:04:18.6]}
11. axb3 {[%clk 0:04:30.5]} 11... a6 {[%clk 0:04:16.2]} 12. Qg3 {[%clk
0:04:24.6]} 12... Be6 {[%clk 0:04:09.5]} 13. Bh6 {[%clk 0:04:02.4]} 13... Nh5
{[%clk 0:04:04.8]} 14. Qf2 {[%clk 0:03:46.7]} 14... gxh6 {[%clk 0:04:00.5]} 15.
Nd5 {[%clk 0:03:42.3]} 15... Kh8 {[%clk 0:03:53.5]} 16. Nxe7 {[%clk 0:03:34.2]}
16... Qxe7 {[%clk 0:03:49.8]} 17. Rae1 {[%clk 0:03:30.4]} 17... Rg8 {[%clk
0:03:46.3]} 18. Nh4 {[%clk 0:03:12.9]} 18... Qg5 {[%clk 0:03:39.8]} 19. g3
{[%clk 0:02:48.8]} 19... Raf8 {[%clk 0:03:33.2]} 20. Ng2 {[%clk 0:02:31.1]}
20... Bh3 {[%clk 0:03:22.6]} 21. Qd4+ {[%clk 0:02:19.7]} 21... Rg7 {[%clk
0:03:16.8]} 22. Rf5 {[%clk 0:02:14]} 22... Qg6 {[%clk 0:03:11.2]} 23. Nf4 {[%clk
0:02:00.7]} 23... Bxf5 {[%clk 0:02:57.6]} 24. Nxg6+ {[%clk 0:01:58.2]} 24...
hxg6 {[%clk 0:02:54.1]} 25. exf5 {[%clk 0:01:55.6]} 25... gxf5 {[%clk
0:02:51.3]} 26. Rf1 {[%clk 0:01:54.5]} 26... Kh7 {[%clk 0:02:41.2]} 27. Rxf5
{[%clk 0:01:46.8]} 27... Re8 {[%clk 0:02:34.9]} 28. Rxh5 {[%clk 0:01:39.4]}
28... Re1+ {[%clk 0:02:29.2]} 29. Kf2 {[%clk 0:01:36.5]} 29... Rc1 {[%clk
0:02:22.8]} 30. Qf4 {[%clk 0:01:33.4]} 30... Kg8 {[%clk 0:02:17.8]} 31. Qxc1
{[%clk 0:01:31.2]} 1-0

[Event "Live Chess"]
[Site "Chess.com"]
[Date "2023.05.20"]
[Round "-"]
[White "Doge_Dandolo"]
[Black "EdenHazard8"]
[Result "0-1"]
[WhiteElo "2063"]
[BlackElo "2090"]
[TimeControl "300"]
[EndTime "11:58:43 PDT"]
[Termination "EdenHazard8 won by resignation"]

1. Nf3 {[%clk 0:04:59]} 1... e6 {[%clk 0:04:48.2]} 2. c4 {[%clk 0:04:57]} 2...
f5 {[%clk 0:04:44.8]} 3. d3 {[%clk 0:04:53.1]} 3... Nf6 {[%clk 0:04:43.6]} 4. g3
{[%clk 0:04:52.3]} 4... Be7 {[%clk 0:04:41.5]} 5. Bg2 {[%clk 0:04:51.8]} 5...
O-O {[%clk 0:04:40]} 6. O-O {[%clk 0:04:51.3]} 6... d6 {[%clk 0:04:38.6]} 7. Nc3
{[%clk 0:04:49.6]} 7... e5 {[%clk 0:04:37.2]} 8. e4 {[%clk 0:04:45.3]} 8... Nc6
{[%clk 0:04:35.6]} 9. Bg5 {[%clk 0:04:43.2]} 9... Qe8 {[%clk 0:04:34.7]} 10.
Bxf6 {[%clk 0:04:42]} 10... Bxf6 {[%clk 0:04:33.8]} 11. Nd5 {[%clk 0:04:41.6]}
11... Bd8 {[%clk 0:04:32.8]} 12. exf5 {[%clk 0:04:34]} 12... Bxf5 {[%clk
0:04:31.3]} 13. Qe2 {[%clk 0:04:31]} 13... Qh5 {[%clk 0:04:28.9]} 14. Rae1
{[%clk 0:04:26.7]} 14... Bg4 {[%clk 0:04:21.8]} 15. Qe4 {[%clk 0:04:11.6]} 15...
Bxf3 {[%clk 0:04:17.8]} 0-1

[Event "Live Chess"]
[Site "Chess.com"]
[Date "2023.05.20"]
[Round "-"]
[White "chessfiction"]
[Black "LL220284LL"]
[Result "1-0"]
[WhiteElo "2412"]
[BlackElo "2391"]
[TimeControl "300"]
[EndTime "11:58:44 PDT"]
[Termination "chessfiction won by resignation"]

1. e4 {[%clk 0:04:57.2]} 1... d5 {[%clk 0:04:58.7]} 2. e5 {[%clk 0:04:55.4]}
2... c5 {[%clk 0:04:57.1]} 3. Nf3 {[%clk 0:04:53]} 3... Nc6 {[%clk 0:04:56.4]}
4. c3 {[%clk 0:04:51.6]} 4... Bf5 {[%clk 0:04:54.1]} 5. d4 {[%clk 0:04:50.9]}
5... e6 {[%clk 0:04:51.7]} 6. Bb5 {[%clk 0:04:48.9]} 6... Qb6 {[%clk 0:04:49.9]}
7. Qe2 {[%clk 0:04:39.6]} 7... h6 {[%clk 0:04:46.4]} 8. dxc5 {[%clk 0:04:36.5]}
8... Bxc5 {[%clk 0:04:44.7]} 9. b4 {[%clk 0:04:36.1]} 9... Be7 {[%clk
0:04:39.5]} 10. Be3 {[%clk 0:04:33.3]} 10... Qc7 {[%clk 0:04:38.8]} 11. O-O
{[%clk 0:04:30.4]} 11... a6 {[%clk 0:04:37.3]} 12. Bxc6+ {[%clk 0:04:22.1]}
12... Qxc6 {[%clk 0:04:36.3]} 13. Nd4 {[%clk 0:04:20.8]} 13... Qc4 {[%clk
0:04:16.1]} 14. Qxc4 {[%clk 0:04:04]} 14... dxc4 {[%clk 0:04:11.4]} 15. Nxf5
{[%clk 0:04:03.9]} 15... exf5 {[%clk 0:04:09.8]} 16. Nd2 {[%clk 0:04:03.8]}
16... Rc8 {[%clk 0:04:06.2]} 17. a4 {[%clk 0:03:58.6]} 17... g5 {[%clk
0:04:03.8]} 18. f4 {[%clk 0:03:54.8]} 18... g4 {[%clk 0:03:48.5]} 19. Bd4 {[%clk
0:03:53]} 19... f6 {[%clk 0:03:46]} 20. Rfe1 {[%clk 0:03:49.7]} 20... Kf7 {[%clk
0:03:43.6]} 21. Nf1 {[%clk 0:03:40.8]} 21... fxe5 {[%clk 0:03:33.6]} 22. Rxe5
{[%clk 0:03:37.9]} 22... Kg6 {[%clk 0:03:30.2]} 23. Ne3 {[%clk 0:03:33.3]} 23...
Bf6 {[%clk 0:03:23.2]} 24. Re6 {[%clk 0:03:23.8]} 24... Kf7 {[%clk 0:03:16.9]}
25. Rb6 {[%clk 0:03:17.4]} 25... Bxd4 {[%clk 0:03:08.7]} 26. Rxb7+ {[%clk
0:03:15.8]} 26... Ne7 {[%clk 0:03:00.5]} 27. cxd4 {[%clk 0:03:11]} 27... Kf6
{[%clk 0:02:59.4]} 28. Rc1 {[%clk 0:02:54.4]} 28... Rhd8 {[%clk 0:02:54.5]} 29.
Rb6+ {[%clk 0:02:48.4]} 29... Kg7 {[%clk 0:02:45.1]} 30. Re6 {[%clk 0:02:43]}
30... Kf7 {[%clk 0:02:39.9]} 31. Rxh6 {[%clk 0:02:38.2]} 31... Ng8 {[%clk
0:02:30.8]} 32. Rxa6 {[%clk 0:02:35.3]} 32... Rxd4 {[%clk 0:02:28.8]} 33. Nxf5
{[%clk 0:02:34]} 33... Rd2 {[%clk 0:02:25.5]} 34. Nd6+ {[%clk 0:02:33.3]} 1-0

[Event "Live Chess"]
[Site "Chess.com"]
[Date "2023.05.20"]
[Round "-"]
[White "zdanevych"]
[Black "bigedd"]
[Result "0-1"]
[WhiteElo "1503"]
[BlackElo "729"]
[TimeControl "300"]
[EndTime "11:59:00 PDT"]
[Termination "bigedd won by resignation"]

1. d4 {[%clk 0:04:59.3]} 1... Nf6 {[%clk 0:04:56.4]} 2. c4 {[%clk 0:04:56.8]}
2... d6 {[%clk 0:04:54.9]} 3. Nc3 {[%clk 0:04:56.2]} 3... Bf5 {[%clk 0:04:51.2]}
4. Nf3 {[%clk 0:04:52]} 4... c6 {[%clk 0:04:49.9]} 5. h3 {[%clk 0:04:51]} 5...
Qc7 {[%clk 0:04:44.2]} 6. Bf4 {[%clk 0:04:49.3]} 6... e6 {[%clk 0:04:35.4]} 7.
c5 {[%clk 0:04:47.1]} 7... Be7 {[%clk 0:04:31.1]} 8. cxd6 {[%clk 0:04:43.7]}
8... Bxd6 {[%clk 0:04:29.9]} 9. Bxd6 {[%clk 0:04:42.1]} 9... Qxd6 {[%clk
0:04:27.5]} 10. e3 {[%clk 0:04:36.6]} 10... O-O {[%clk 0:04:24.7]} 11. Be2
{[%clk 0:04:34.4]} 11... Re8 {[%clk 0:04:22]} 12. O-O {[%clk 0:04:32.5]} 12...
h6 {[%clk 0:04:20.3]} 13. Ne5 {[%clk 0:04:31.1]} 13... Nbd7 {[%clk 0:04:09.2]}
14. Nc4 {[%clk 0:04:28.7]} 14... Qc7 {[%clk 0:04:00.2]} 15. Rc1 {[%clk
0:04:21.7]} 15... b5 {[%clk 0:03:53.9]} 16. Na3 {[%clk 0:04:16.7]} 16... b4
{[%clk 0:03:42.6]} 17. Na4 {[%clk 0:04:08]} 17... bxa3 {[%clk 0:03:40.1]} 18.
bxa3 {[%clk 0:04:06.6]} 18... Ne4 {[%clk 0:03:28.9]} 19. Bf3 {[%clk 0:03:59]}
19... Rab8 {[%clk 0:03:25]} 20. Bxe4 {[%clk 0:03:53.4]} 20... Bxe4 {[%clk
0:03:23.2]} 21. Nc5 {[%clk 0:03:53.3]} 21... Nxc5 {[%clk 0:03:20.1]} 22. Rxc5
{[%clk 0:03:53.2]} 22... Rb5 {[%clk 0:03:03.6]} 23. Rc3 {[%clk 0:03:49.8]} 23...
Reb8 {[%clk 0:02:56.4]} 24. Qg4 {[%clk 0:03:47.3]} 24... Bf5 {[%clk 0:02:47]}
25. Qf3 {[%clk 0:03:42.8]} 25... Rb1 {[%clk 0:02:38.6]} 26. Rcc1 {[%clk
0:03:41.5]} 26... Rxc1 {[%clk 0:02:33.8]} 27. Rxc1 {[%clk 0:03:41.4]} 27... Kh7
{[%clk 0:02:13.5]} 28. Rxc6 {[%clk 0:03:38.3]} 28... Qb7 {[%clk 0:02:10]} 29.
Kh2 {[%clk 0:03:32.9]} 29... Rc8 {[%clk 0:01:49.3]} 30. Rxc8 {[%clk 0:03:25.5]}
30... Qxc8 {[%clk 0:01:47.7]} 31. Qe2 {[%clk 0:03:22]} 31... Qc7+ {[%clk
0:01:39.7]} 32. f4 {[%clk 0:03:17.7]} 32... Qc2 {[%clk 0:01:37.2]} 33. Qxc2
{[%clk 0:03:16.4]} 33... Bxc2 {[%clk 0:01:35.9]} 34. Kg3 {[%clk 0:03:16]} 34...
Kg6 {[%clk 0:01:34.3]} 35. Kf2 {[%clk 0:03:15.4]} 35... Kf5 {[%clk 0:01:32.8]}
36. g4+ {[%clk 0:03:14.7]} 36... Ke4 {[%clk 0:01:30.9]} 37. Ke2 {[%clk
0:03:14.2]} 37... g6 {[%clk 0:01:27.4]} 38. h4 {[%clk 0:03:13.6]} 38... f5
{[%clk 0:01:24.6]} 39. g5 {[%clk 0:03:11]} 39... hxg5 {[%clk 0:01:21.9]} 40.
hxg5 {[%clk 0:03:10.1]} 40... Bb1 {[%clk 0:01:18.2]} 41. a4 {[%clk 0:03:06.8]}
41... Bxa2 {[%clk 0:01:16.7]} 42. Kd2 {[%clk 0:03:05.5]} 42... Bb3 {[%clk
0:01:14]} 43. a5 {[%clk 0:03:04.6]} 43... Bc4 {[%clk 0:01:10.3]} 44. Kc3 {[%clk
0:03:03.3]} 44... Bd3 {[%clk 0:01:06.6]} 45. Kb4 {[%clk 0:03:00.5]} 45... Kxe3
{[%clk 0:01:05.5]} 46. Kc5 {[%clk 0:02:59.7]} 46... Kxf4 {[%clk 0:01:02.6]} 47.
Kd6 {[%clk 0:02:59.1]} 47... e5 {[%clk 0:00:57.4]} 48. dxe5 {[%clk 0:02:57.7]}
48... Ke4 {[%clk 0:00:55.3]} 49. e6 {[%clk 0:02:56.9]} 49... Bb5 {[%clk
0:00:52.9]} 50. e7 {[%clk 0:02:54.3]} 50... f4 {[%clk 0:00:51.2]} 51. Kc7 {[%clk
0:02:50.7]} 51... f3 {[%clk 0:00:50.2]} 52. Kb7 {[%clk 0:02:47.3]} 52... f2
{[%clk 0:00:49.1]} 53. Kxa7 {[%clk 0:02:46.4]} 53... f1=Q {[%clk 0:00:47.3]} 54.
Kb6 {[%clk 0:02:45.8]} 0-1

[Event "Live Chess"]
[Site "Chess.com"]
[Date "2023.05.20"]
[Round "-"]
[White "Duke_of_Bebington"]
[Black "PLZ909"]
[Result "1-0"]
[WhiteElo "1564"]
[BlackElo "1276"]
[TimeControl "300"]
[EndTime "11:59:22 PDT"]
[Termination "Duke_of_Bebington won by resignation"]

1. e4 {[%clk 0:04:58.2]} 1... d5 {[%clk 0:04:59.9]} 2. exd5 {[%clk 0:04:56.7]}
2... Qxd5 {[%clk 0:04:59.8]} 3. d4 {[%clk 0:04:55.3]} 3... Nf6 {[%clk
0:04:55.4]} 4. Nf3 {[%clk 0:04:53.9]} 4... Bg4 {[%clk 0:04:53.9]} 5. Be2 {[%clk
0:04:53]} 5... e6 {[%clk 0:04:50.3]} 6. Be3 {[%clk 0:04:44.5]} 6... Bb4+ {[%clk
0:04:48.6]} 7. c3 {[%clk 0:04:39.8]} 7... Ba5 {[%clk 0:04:47.5]} 8. O-O {[%clk
0:04:36.2]} 8... Nc6 {[%clk 0:04:45.8]} 9. b4 {[%clk 0:04:29.1]} 9... Bb6 {[%clk
0:04:41.1]} 10. c4 {[%clk 0:04:27.2]} 10... Qf5 {[%clk 0:04:17]} 11. c5 {[%clk
0:04:22.2]} 11... Bxc5 {[%clk 0:04:13.6]} 12. bxc5 {[%clk 0:04:12.9]} 12...
O-O-O {[%clk 0:04:09.6]} 13. Qa4 {[%clk 0:04:05.8]} 13... Kb8 {[%clk 0:04:06.9]}
14. Nc3 {[%clk 0:03:59.9]} 14... h5 {[%clk 0:04:02.8]} 15. Nh4 {[%clk
0:03:50.6]} 15... Qc2 {[%clk 0:03:38.8]} 16. Qxc2 {[%clk 0:03:46.6]} 16... Bxe2
{[%clk 0:03:37.6]} 1-0

[Event "Live Chess"]
[Site "Chess.com"]
[Date "2023.05.20"]
[Round "-"]
[White "brownbear2704"]
[Black "whitedjohn"]
[Result "0-1"]
[WhiteElo "1218"]
[BlackElo "1672"]
[TimeControl "300"]
[EndTime "11:59:27 PDT"]
[Termination "whitedjohn won by checkmate"]

1. d4 {[%clk 0:04:54]} 1... Nf6 {[%clk 0:04:55.3]} 2. Bf4 {[%clk 0:04:51.5]}
2... d5 {[%clk 0:04:52.2]} 3. Nf3 {[%clk 0:04:48]} 3... c5 {[%clk 0:04:50.2]} 4.
e3 {[%clk 0:04:42.5]} 4... Nc6 {[%clk 0:04:48]} 5. c3 {[%clk 0:04:39.5]} 5...
Qb6 {[%clk 0:04:45.9]} 6. Qb3 {[%clk 0:04:36.5]} 6... Qxb3 {[%clk 0:04:43.2]} 7.
axb3 {[%clk 0:04:35.8]} 7... cxd4 {[%clk 0:04:41.3]} 8. cxd4 {[%clk 0:04:29.4]}
8... e6 {[%clk 0:04:28.8]} 9. Ne5 {[%clk 0:04:24]} 9... Nxe5 {[%clk 0:04:24.4]}
10. dxe5 {[%clk 0:04:23.2]} 10... Ne4 {[%clk 0:04:18.9]} 11. Bb5+ {[%clk
0:04:13]} 11... Bd7 {[%clk 0:04:15.7]} 12. Ba4 {[%clk 0:04:07.6]} 12... Bb4+
{[%clk 0:04:11.9]} 13. Nc3 {[%clk 0:03:49.6]} 13... b5 {[%clk 0:04:07.2]} 14.
Bxb5 {[%clk 0:03:30.8]} 14... Bxb5 {[%clk 0:04:04.3]} 15. Rc1 {[%clk 0:03:23.8]}
15... Rc8 {[%clk 0:03:59.4]} 16. f3 {[%clk 0:03:16.3]} 16... Nxc3 {[%clk
0:03:55.6]} 17. bxc3 {[%clk 0:03:10]} 17... Rxc3 {[%clk 0:03:53.6]} 18. Kd2
{[%clk 0:03:03.2]} 18... Rxb3+ {[%clk 0:03:47.6]} 19. Kd1 {[%clk 0:02:49.5]}
19... O-O {[%clk 0:03:37.7]} 20. e4 {[%clk 0:02:47.5]} 20... d4 {[%clk
0:03:33.1]} 21. Bd2 {[%clk 0:02:41]} 21... Rd3 {[%clk 0:03:26.6]} 22. Rb1 {[%clk
0:02:08.2]} 22... Rxd2+ {[%clk 0:03:23.2]} 23. Kc1 {[%clk 0:02:00.9]} 23... Rc8#
{[%clk 0:03:19.1]} 0-1